Cogmind - Beta 16 @@@ ROGUE MODE // 2025.10.26 @ 09:21:27 Player: 3.14 Result: Destroyed by P-60 Hacker with Shock Rifle Performance ------------- Evolutions (0) 0 Regions Visited (2) 400 Robots Destroyed (17) 85 Value Destroyed (430) 430 Prototype IDs (0) 0 Alien Tech Used (0) 0 Bonus (0) 0 TOTAL SCORE: 915 Bonus ------- None Cogmind --------- Core Integrity 0/250 Matter 277/300 Energy 200/200 System Corruption 5% Temperature Cool (0) Movement Treading (260) Ox1 Location -10/Subcaves Parts ------- > --- POWER (1) -------- Subdweller Power Source > --- PROPULSION (2) --- Spiked Treads Spiked Treads > --- UTILITY (2) ------ Light Humpback > --- WEAPON (2) ------- Subdweller Machine Gun > --- INVENTORY (25) --- Subdweller Power Source Subdweller Monowheel High-capacity Storage Unit EM Pulse Gun Subdweller Laser Battle Rifle Subdweller Machine Gun Grenade Launcher Subdweller Shrapnel Launcher Mining Laser SUBCON Basin (Full) Peak State ------------ > --- POWER ------------ Subdweller Power Source > --- PROPULSION ------- Spiked Treads Subdweller Monowheel > --- UTILITY ---------- Light Humpback > --- WEAPON ----------- Subdweller Beam Cannon Battle Cannon > --- INVENTORY -------- Subdweller Power Source Subdweller Monowheel High-capacity Storage Unit EM Pulse Gun Subdweller Laser Battle Rifle Subdweller Machine Gun Subdweller Machine Gun Grenade Launcher Mining Laser SUBCON Basin [Rating: 31] Favorites ----------- Power Subdweller Power Source Engine Subdweller Power Source Propulsion Aluminum Leg Treads Spiked Treads Leg Aluminum Leg Wheel Subdweller Monowheel Utility Seismic Detector Device Seismic Detector Storage High-capacity Storage Unit Weapon Subdweller Beam Cannon Energy Gun Small Laser Energy Cannon Subdweller Beam Cannon Ballistic Gun Assault Rifle Ballistic Cannon Battle Cannon Build | -11 -10 -10 ------- Run | Yrd Mat Sub Slots Evolved . | . . . Power . | . . . Propulsion . | . . . Utility . | . . . Weapon . | . . . Parts Attached 25 | 7 5 13 Power 5 | 1 2 2 Engine 5 | 1 2 2 Core . | . . . Reactor . | . . . Propulsion 7 | 2 . 5 Treads 2 | . . 2 Leg 4 | 2 . 2 Wheel 1 | . . 1 Hover . | . . . Flight . | . . . Utility 5 | 2 2 1 Device 2 | 1 1 . Storage 3 | 1 1 1 Processor . | . . . Hackware . | . . . Protection . | . . . Artifact . | . . . Weapon 8 | 2 1 5 Energy Gun 3 | 1 1 1 Energy Cannon 1 | . . 1 Ballistic Gun 3 | 1 . 2 Ballistic Cannon 1 | . . 1 Launcher . | . . . Special Weapon . | . . . Impact Weapon . | . . . Slashing Weapon . | . . . Piercing Weapon . | . . . Special Melee Weapon . | . . . Unidentified Prototypes . | . . . Corrupted Parts 2 | . . 2 System Corruption 2 | . . 2 Parts Lost 7 | . 1 6 Power . | . . . Propulsion 2 | . . 2 Utility 1 | . 1 . Weapon 4 | . . 4 Highest Loss Streak 3 | . 1 3 To Critical Strikes . | . . . Average Backups 10 | 2 8 12 Power 1 | . 1 1 Propulsion 1 | . 1 1 Utility 2 | . 2 2 Weapon 5 | . 2 7 Tool/Special . | . . . Unused Backups 13 | 1 . 12 Power 2 | . . 2 Propulsion 1 | . . 1 Utility 3 | 1 . 2 Weapon 7 | . . 7 Tool/Special . | . . . Average Slot Usage (%) 95 | . 96 94 Engine 14 | . 14 14 Treads 8 | . . 11 Leg 15 | . 28 11 Wheel 3 | . . 4 Device 9 | . 11 9 Storage 14 | . 14 14 Energy Gun 4 | . 13 1 Energy Cannon 8 | . . 10 Ballistic Gun 10 | . 14 9 Ballistic Cannon 5 | . . 6 Peak Build Rating 31 | 7 8 31 Average Rating 13 | 6 7 16 On Entrance 5 | . 7 8 Avg Prop Armor Cover (%) 4 | . . 4 Naked Turns . | . . . Heaviest Build 58 | 13 49 58 Greatest Support 40 | 20 20 40 Greatest Overweight (x) 5 | 1 2 5 Average Overweight (x) 1 | . . 1 Largest Inventory Capacity 25 | 8 20 25 Average Capacity 18 | 7 14 21 Most Carried 25 | 6 10 25 Average Carried 13 | 2 8 16 Final Capacity 25 | 8 20 25 Final Carried 25 | 6 10 25 Class Distribution -------------------- 63% | Mutant 21% | Derelict-Mutant 15% | Scavenger-Mutant Dominant Class ---------------- Mutant | -10/Materials Mutant | -10/Subcaves Resources | -11 -10 -10 ----------- Run | Yrd Mat Sub Matter Collected 691 | 361 78 252 Remotely . | . . . Salvage Created 509 | 154 102 253 Parts 36 | 15 8 13 Haulers Intercepted . | . . . Recyclers Shooed . | . . . Parts Field Recycled . | . . . Retrieved Matter . | . . . Parts Self-Destructed 9 | . . 9 Prevented . | . . . Parts Restored . | . . . Kills | -11 -10 -10 ------- Run | Yrd Mat Sub Combat Hostiles Destroyed 10 | . 3 7 Guns 4 | . 2 2 Cannons 5 | . . 5 AOE 1 | . 1 . Classes Destroyed 4 | 2 1 1 Tunneler 6 | 6 . . Recycler 1 | 1 . . Grunt 3 | . 3 . Subdweller 7 | . . 7 Best Kill Streak 3 | 3 2 2 Combat Bots Only 2 | . 2 2 Max Kills in Single Turn 1 | 1 1 1 Gunslinging . | . . . Exploded 1 | . 1 . Melee . | . . . Uniques/NPCs Destroyed . | . . . Combat | -11 -10 -10 -------- Run | Yrd Mat Sub Hostile Shots Fired 62 | . 15 47 Missed 13 | . 3 10 Hits 49 | . 12 37 Projectile 49 | . 12 37 AOE 9 | . . 9 Critical Strikes 2 | . . 2 Damage Taken 1219 | . 166 1053 Core 263 | . 36 227 Absorbed by Shields . | . . . Core Remaining (%) 100 | 100 . . Volleys Fired 85 | 39 10 36 Largest 2 | 1 2 2 Hottest 113 | 20 60 113 Shots Fired 125 | 39 19 67 Gun 89 | 39 19 31 Cannon 36 | . . 36 Launcher . | . . . Special . | . . . Kinetic 87 | 39 10 38 Thermal 36 | . 7 29 Explosive . | . . . Electromagnetic 2 | . 2 . Robot Hit Streak 19 | 9 4 19 Robot Miss Streak 2 | 2 2 2 Penetration Max . | . . . Secondary Targets . | . . . Shots Hit Robots 83 | 26 13 44 Core Hits 25 | 8 5 12 Critical Kills . | . . . Critical Parts Destroyed 1 | 1 . . Critical Strikes 2 | 1 . 1 Destroy 1 | 1 . . Blast 1 | . . 1 Melee Attacks . | . . . Impact . | . . . Slashing . | . . . Piercing . | . . . Sneak Attacks . | . . . Combat Hostiles . | . . . Follow-up Attacks . | . . . Damage Inflicted 1464 | 310 208 946 Guns 873 | 310 167 396 Cannons 550 | . . 550 Explosions 20 | . 20 . Melee . | . . . Ramming 21 | . 21 . Kinetic 937 | 310 80 547 Thermal 476 | . 77 399 Explosive . | . . . Electromagnetic 30 | . 30 . Impact . | . . . Slashing . | . . . Piercing . | . . . Highest Corruption 4 | . . 4 Average Corruption 2 | . . 2 Corruption Purged . | . . . Corruption Blocked . | . . . Effects 19 | . . 19 Message Errors 2 | . . 2 Matter Fused 4 | . . 4 Heat Flow Errors 5 | . . 5 Energy Discharges 3 | . . 3 Parts Fused 1 | . . 1 Misfires 4 | . . 4 Overload Shots . | . . . Overflow Damage 17 | . 17 . Projectiles . | . . . Explosions 17 | . 17 . Melee . | . . . Knockbacks 1 | . 1 . Impact 1 | . 1 . Kinetic . | . . . Secondary . | . . . Self-Inflicted Damage 37 | . 37 . Shots 1 | . 1 . Rammed . | . . . Targets Rammed 2 | . 2 . Kicked 2 | . 2 . Crushed . | . . . Highest Temperature 251 | . 54 251 Average Temperature 56 | . 29 76 Received Heat Transfer 120 | . 72 48 Siege Activations . | . . . Martial Activations . | . . . Shielding Activations . | . . . Robots Disrupted . | . . . Combat Hostiles . | . . . Robots Corrupted . | . . . Combat Hostiles . | . . . Parts Fried . | . . . Impact Corruptions . | . . . Robots Melted . | . . . Combat Hostiles . | . . . Parts Melted 2 | . 1 1 Heat Transferred 718 | . 175 543 Parts Sabotaged . | . . . Parts Stolen . | . . . Parts Stripped . | . . . Power Chain Reactions 1 | . 1 . Alert | -11 -10 -10 ------- Run | Yrd Mat Sub Maximum Alert Level . | . . . Low Security (%) 100 | 100 100 . Level 1 . | . . . Level 2 . | . . . Level 3 . | . . . Level 4 . | . . . Level 5 . | . . . High Security . | . . . Max Security . | . . . Peak Influence 52 | 10 52 . Initial . | . . . Average 7 | 1 10 . Influence Increases 156 | 35 121 . Destroy 0b10 Robot/C 60 | . 60 . Destroy 0b10 Robot/NC 35 | 35 . . Destroy Leader 10 | . 10 . Successful Hack 4 | . 4 . Destroy Structure 2 | . 2 . Lose Combat Pursuer 45 | . 45 . Influence Decreases 156 | 35 121 . Time Decay 146 | 35 111 . Lost Part 10 | . 10 . Squads Dispatched 1 | . 1 . Investigation . | . . . Extermination . | . . . Reinforcement 1 | . 1 . Assault . | . . . Garrison . | . . . Intercept . | . . . Searches Triggered . | . . . Construction Impeded . | . . . Haulers Reinforced . | . . . Active Scanning Responses . | . . . Cargo Convoy Interrupts . | . . . Stealth | -11 -10 -10 --------- Run | Yrd Mat Sub Distress Signals 1 | . 1 . Communications Jammed . | . . . Distress Signals . | . . . Times Spotted 18 | . 7 11 Peak Tracking Total 3 | . 3 3 Tactical Retreats 2 | . 2 . Traps | -11 -10 -10 ------- Run | Yrd Mat Sub Traps Triggered . | . . . Indirectly . | . . . Trap Hack Attempts . | . . . Triggered . | . . . Disarmed . | . . . Reprogrammed . | . . . Reused . | . . . Traps Extracted . | . . . Installed . | . . . Triggered . | . . . Machines | -11 -10 -10 ---------- Run | Yrd Mat Sub Machines Disabled . | . . . Max in Single Turn . | . . . Machines Repaired . | . . . Machines Dismantled . | . . . Machines Sabotaged . | . . . Overloaded Fab Kills . | . . . Hacking | -11 -10 -10 --------- Run | Yrd Mat Sub Machines Accessed 4 | . 2 2 Terminals 2 | . 2 . Fabricators . | . . . Repair Stations . | . . . Recycling Units . | . . . Scanalyzers . | . . . Garrison Access . | . . . Total Hacks 9 | . 6 3 Successful 6 | . 3 3 Failed 3 | . 3 . Catastrophic 1 | . 1 . Database Lockouts . | . . . Manual 4 | . 4 . Terminals 6 | . 6 . Fabricators . | . . . Repair Stations . | . . . Recycling Units . | . . . Scanalyzers . | . . . Garrison Access . | . . . Terminal Hacks 4 | . 1 3 Record 1 | . . 1 Open Door 1 | . . 1 Terminal Index 1 | . 1 . Release Object 1 | . . 1 Fabricator Hacks . | . . . Repair Station Hacks . | . . . Recycling Unit Hacks . | . . . Scanalyzer . | . . . Garrison Access Hacks . | . . . Unauthorized Hacks 2 | . 2 . Terminals 2 | . 2 . Skim 2 | . 2 . Fabricators . | . . . Repair Stations . | . . . Recycling Units . | . . . Scanalyzers . | . . . Garrison Access . | . . . Data Cores Recovered . | . . . Used . | . . . Hacking Detections 2 | . 2 . Full Trace Events 1 | . 1 . Feedback Events . | . . . Feedback Blocked . | . . . Robot Schematics Acquired . | . . . Robots Built . | . . . Authchips . | . . . Time . | . . . Total Robot Build Rating . | . . . Part Schematics Acquired . | . . . Parts Built . | . . . Authchips . | . . . Time . | . . . Total Part Build Rating . | . . . Part Studies Acquired . | . . . Parts Repaired . | . . . Time . | . . . Parts Recycled . | . . . Recycled Matter . | . . . Retrieved Matter . | . . . Retrieved Components . | . . . Parts Scanalyzed . | . . . Part Schematics Acquired . | . . . Parts Damaged . | . . . Bothacking | -11 -10 -10 ------------ Run | Yrd Mat Sub Used RIF Installer . | . . . Robots Hacked . | . . . Non-combat . | . . . Combat . | . . . Robot Hacks Applied . | . . . Relay Couplers Released . | . . . Fabnet Peak Effective % . | . . . Robots Rewired . | . . . Allies Hacked . | . . . Hacks Repelled . | . . . Allies | -11 -10 -10 -------- Run | Yrd Mat Sub Total Allies . | . . . Largest Group . | . . . Highest-Rated Group . | . . . Highest-Rated Ally . | . . . Total Orders . | . . . Ally Attacks . | . . . Total Damage . | . . . Kills . | . . . Allies Corrupted . | . . . Allies Melted . | . . . Intel | -11 -10 -10 ------- Run | Yrd Mat Sub Active Infowar (turns) 1671 | 157 394 1120 Seismic 1671 | 157 394 1120 Robot Analysis Total . | . . . Derelict Logs Recovered 3 | . . 3 Drone Launches . | . . . Drone Recoveries . | . . . Exploration | -11 -10 -10 ------------- Run | Yrd Mat Sub Turns Passed 2456 | 246 505 1705 Spaces Moved 876 | 126 249 501 Core 5 | 5 . . Treads 283 | . . 283 Legs 588 | 121 249 218 Wheels . | . . . Hover . | . . . Flight . | . . . Fastest Speed 50 | 50 120 260 Average Speed 242 | 119 176 306 Slowest Speed 470 | 190 260 470 Overloaded Moves . | . . . Propulsion Burnouts . | . . . Robots Hopped . | . . . Potential Cave-ins . | . . . Cave-ins Triggered . | . . . Exploration Rate (%) 24 | 7 33 33 Regions Visited 2 Branch Regions 1 Pre-discovered Areas 2 | . . 2 Known Exits Taken . | . . . Unknown Exits Taken 2 | 1 1 . Scrap Searched 2 | . . 2 Spaces Dug . | . . . Terrain Destroyed 5 | . 2 3 Melee . | . . . Projectile 3 | . . 3 AOE 2 | . 2 . Terrain Rammed . | . . . Walls Destroyed . | . . . Machines Disabled . | . . . Actions | -11 -10 -10 --------- Run | Yrd Mat Sub Total 1089 | 179 295 615 Wait 41 | . 22 19 Move 874 | 125 248 501 Hop . | . . . Pick Up 40 | 7 4 29 Fast Attach 10 | 7 2 1 Attach 6 | . . 6 Detach . | . . . Swap 9 | . 3 6 Drop 22 | 1 4 17 Fire 85 | 39 10 36 Melee . | . . . Ram . | . . . Kick 2 | . 2 . Crush . | . . . Escape Stasis . | . . . Rewire . | . . . Trap . | . . . Miscellaneous . | . . . Route ------- -11/Scrapyard -10/Materials (discovered 2 exits: [*Min] / *Sub) -10/Subcaves (discovered 1 exit: [*Mat]) History --------- Turn | Location | Event 2 | -11/Scrapyard | Discovered new exit (range 16) 247 | -11/Scrapyard | Entered Materials 305 | -10/Materials | Build established: Mutant 327 | -10/Materials | Discovered new exit (range 7) 535 | -10/Materials | Discovered new exit (range 12) 752 | -10/Materials | Entered Subcaves 753 | -10/Subcaves | Approached by a straggling Scientist 758 | -10/Subcaves | Learned location of Mines (-9) 1062 | -10/Subcaves | Core integrity fell below 50% 1092 | -10/Subcaves | Lost 3 parts (2n1w) 1280 | -10/Subcaves | Shifting Twisted Machinery released Spk. Treads 1293 | -10/Subcaves | Shifting Twisted Machinery released Battle Rifle 1350 | -10/Subcaves | Build established: Scavenger-Mutant 1426 | -10/Subcaves | Ambushed by Subdwellers from Twisted Machinery 1553 | -10/Subcaves | Learned location of Zion (-6) 1592 | -10/Subcaves | Learned Materials terminal intel 1738 | -10/Subcaves | Build established: Mutant 2043 | -10/Subcaves | Found SUBCON Basin 2103 | -10/Subcaves | Core integrity fell below 20% 2217 | -10/Subcaves | Build established: Derelict-Mutant 2429 | -10/Subcaves | Discovered new exit (range 11) 2451 | -10/Subcaves | Ambushed by research squad 2457 | -10/Subcaves | Destroyed by P-60 Hacker with Shock Rifle Last Messages --------------- 02252_ HV-M0D(R) destroyed. 02254_ Battle Cannon destroyed. 02275_ LT-789(R) affixes Scrap Shield Fragment to Scrap Shield. 02275_ LT-789(R) destroyed. 02291_ System corrupted: FCS attempts to trigger Sub. Machine Gun. 02291_ System corrupted: Sub. Machine Gun misfires. 02302_ Acquired 48 matter. 02304_ Acquired 10 matter. 02307_ Sub. Power Source shoots sparks and powers down. 02310_ Acquired Sub. Shrapnel Launcher. 02316_ Dropped Broken Sub. Power Source. 02385_ System corrupted: Heat flow error (+202). 02402_ System corrupted: Matter fused (-9). 02429_ EXIT=FOUND 02450_ Penetrated by Slug. 02450_ Sub. Beam Cannon destroyed. 02450_ Slug penetrates Wall. 02451_ P-60 Hacker: "UNIQUE TECHNOLOGY DETECTED, NEUTRALIZE FOR ANALYSIS." 02453_ Penetrated by Slug. 02456_ Slug penetrates Wall. Map ----- +----------------------------------------------------+ | | | | | | | | | | | | | | | | | ?????????????????????????????????????????????????? | | ?????????????????????????????????????????????????? | | ?????????????????"???????????????????????????????? | | ???????????????#" " ?????????????????????????????? | | ??????????????? """ #????????????????????????????? | | ???????????????"""""#????????????????????????????? | | ???????????????" " #????????????????????????????? | | ???????????????#""" #????????????????????????????? | | ??????????????## "" #????????????????????????????? | | ?????????###### " "#????????????????????????????? | | ?????????# # ""#?????????????????????????????? | | ?????????## #?????????????????????????????? | | ?????????#" ## ##?????????????????????????????? | | ???????### "#######?????#####??????????????????? | | ###??### " ### ###???# hh#??????????????????? | | #### #####p #??????????????????? | | ## ####### # # ###????????????????? | | ###### @ #????????????????? | | ## ## # #????????????? | | # ## # ## ##????????????? | | # ## #### ? #?????????????? | | ##### ## ###??# # # ##?????????????? | | # #??# ## #????# ##? #??????????????? | | ## #??# ###????# #?? ## #??????????????? | | #?? ###?????? ??# ##? #?????????????? | | ##??# #???????# < ?? ??? ????????????? | | ##?? #???????# ##?# #????" # ???????????? | | ## # ??????? ##???###?????##? ??????????? | | ??????? ???????????????????????????? | | ?????? ???????????????????????????? | | ?????? #???????????????????????????? | | ###?????## ????????????????????????????? | | #???????? ????????????????????????????? | | ##????????? ????????????????????????????? | | #???????????????????????????????????????? | | ##???????????????????????????????????????? | | ## ###????????????????????????????????????????? | | #?# #??????????????????????????????????????????? | | #??##??????????????????????????????????????????? | | ??????????????????????????????????????????????? | | #?????????????????????????????????????????????? | | ##?????????????????????????????????????????????? | +----------------------------------------------------+ Best States ------------- Heat Dissipation 25 Energy Generation 15 Energy Capacity 250 Matter Stores 300 Matter Capacity 300 Sight Range 16 Terrain Scan Density 10 Evasion (%) 55 Recoil Reduction 2 Item Schematics ----------------- None Robot Schematics ------------------ None Fabricated ------------ Nothing Repaired ---------- Nothing Studied --------- None Alien Tech Used ----------------- None Achievements -------------- None Challenges ------------ None Game ------ Seed SeismicTractorSheargun Manual? 0 Play Time 00:12:50 Cumulative 939.8 hours Start 2025.10.26 @ 09:13:12 End 2025.10.26 @ 09:21:27 Sessions 1 Manual Loads 0 Difficulty Rogue Special Mode None Game No. 1590 Rogue 1590 Adventurer 0 Explorer 0 Win Type - Total 92 Types 54/1/16/15/4/0/0/1/0/1 Lore% 92 Gallery% 83 Achievement% 56 Wizard Run 0 Options --------- Layout 0 ASCII 1 Keyboard 0 Movement Numpad Keybinds 1 Fullscreen 2 Font 18/SmallcapsGlow Map View 76x50 Zoom Use 0% Tactical HUD 1 Map Filters NONE Filters NONE Steam 1 RUN: d789a572-4e63-4bd1-9e79-d0d8e4d6e4f2